fUSD/lending_fUSD_20250606
["ID","MTS","AMOUNT","RATE_DAILY","PERIOD"]
[364648137,1749178246887,-814.5,0.00030164,7]
[364648138,1749178246897,-1071.96,0.00030164,7]
[364648139,1749178246906,-210.989504,0.00030164,7]
[364648140,1749178246916,-1477.32,0.00030164,7]
[364648141,1749178246925,-5207.905277,0.00030164,7]
[364648142,1749178246935,-500.10509747,0.00030164,7]
[364648143,1749178246945,-480.0,0.00030164,7]
[364648144,1749178246954,-4769.8,0.00030164,7]
[364648145,1749178246965,-3557.02,0.00030164,7]
[364648146,1749178246974,-1242.67,0.00030164,7]
[364648147,1749178246983,-480.0,0.00030164,7]
[364648148,1749178246992,-151.0,0.00030164,7]
[364648149,1749178247002,-1000.0,0.00030164,7]
[364648150,1749178247011,-5638.44,0.00030164,7]
[364648151,1749178247021,-3779.47,0.00030164,7]
[364648152,1749178247030,-865.0,0.00030164,7]
[364648153,1749178247039,-499.96858413,0.00030164,7]
[364648154,1749178247048,-480.0,0.00030164,7]
[364648155,1749178247058,-487.27699491,0.00030164,7]
[364648156,1749178247067,-673.44,0.00030164,7]
[364648157,1749178247077,-500.0,0.00030164,7]
[364648158,1749178247086,-480.0,0.00030164,7]
[364648159,1749178247095,-500.0,0.00030164,7]
[364648160,1749178247105,-1637.8,0.00030164,7]
[364648161,1749178247114,-500.0,0.00030164,7]
[364648162,1749178247126,-1204.89,0.00030164,7]
[364648163,1749178247135,-1000.0,0.00030164,7]
[364648164,1749178247144,-1862.65,0.00030164,7]
[364648165,1749178247153,-151.0,0.00030164,7]
[364648166,1749178247162,-1047.8,0.00030164,7]
[364648167,1749178247172,-1626.41,0.00030164,7]
[364648168,1749178247181,-1193.72,0.00030164,7]
[364648169,1749178247191,-1196.87,0.00030164,7]
[364648170,1749178247201,-480.0,0.00030164,7]
[364648171,1749178247211,-480.0,0.00030164,7]
[364648172,1749178247220,-480.0,0.00030164,7]
[364648173,1749178247229,-1761.06,0.00030164,7]
[364648174,1749178247239,-1006.252971,0.00030164,7]
[364648175,1749178247249,-489.00516933,0.00030164,7]
[364648176,1749178247258,-426.73080055,0.00030164,7]
[364648177,1749178247268,-960.89,0.00030164,7]
[364648178,1749178247278,-1358.01,0.00030164,7]
[364648179,1749178247288,-2058.39,0.00030164,7]
[364648180,1749178247297,-469.820217,0.00030164,7]
[364648181,1749178247307,-401.79896918,0.00030164,7]
[364648182,1749178247317,-580.78,0.00030164,7]
[364648183,1749178247326,-1006.252971,0.00030164,7]
[364648184,1749178247335,-480.0,0.00030164,7]
[364648185,1749178247344,-931.09,0.00030164,7]
[364648186,1749178247354,-480.0,0.00030164,7]
[364648187,1749178247363,-491.51365123,0.00030164,7]
[364648188,1749178247374,-891.79,0.00030164,7]
[364648189,1749178247383,-4788.06,0.00030164,7]
[364648190,1749178247392,-469.820217,0.00030164,7]
[364648191,1749178247402,-952.56,0.00030164,7]
[364648192,1749178247411,-480.0,0.00030164,7]
[364648193,1749178247421,-2284.72,0.00030164,7]
[364648194,1749178247431,-479.58928865,0.00030164,7]
[364648195,1749178247441,-480.0,0.00030164,7]
[364648196,1749178247451,-559.14076901,0.00030164,7]
[364648197,1749178247460,-480.0,0.00030164,7]
[364648198,1749178247470,-1142.15,0.00030164,7]
[364648199,1749178247480,-480.0,0.00030164,7]
[364648200,1749178247489,-512.89820033,0.00030164,7]
[364648201,1749178247499,-480.0,0.00030164,7]
[364648202,1749178247510,-480.0,0.00030164,7]
[364648203,1749178247520,-480.0,0.00030164,7]
[364648204,1749178247530,-480.0,0.00030164,7]
[364648205,1749178247539,-490.81977368,0.00030164,7]
[364648206,1749178247549,-151.0,0.00030164,7]
[364648207,1749178247558,-888.38,0.00030164,7]
[364648208,1749178247568,-579.26,0.00030164,7]
[364648209,1749178247578,-480.0,0.00030164,7]
[364648210,1749178247587,-502.92530979,0.00030164,7]
[364648211,1749178247596,-1988.93,0.00030164,7]
[364648212,1749178247606,-2493.26,0.00030164,7]
[364648213,1749178247615,-286.986863,0.00030164,7]
[364648214,1749178247625,-889.01,0.00030164,7]
[364648215,1749178247634,-480.0,0.00030164,7]
[364648216,1749178247644,-480.0,0.00030164,7]
[364648217,1749178247653,-7369.91,0.00030164,7]
[364648218,1749178247663,-480.0,0.00030164,7]
[364648219,1749178247672,-480.0,0.00030164,7]
[364648220,1749178247682,-634.07,0.00030164,7]
[364648221,1749178247691,-491.41990525,0.00030164,7]
[364648222,1749178247701,-476.83694067,0.00030164,7]
[364648223,1749178247712,-1660.75,0.00030164,7]
[364648224,1749178247723,-4706.6,0.00030164,7]
[364648225,1749178247733,-1840.27,0.00030164,7]
[364648226,1749178247742,-480.0,0.00030164,7]
[364648227,1749178247752,-480.0,0.00030164,7]
[364648228,1749178247761,-480.0,0.00030164,7]
[364648229,1749178247771,-698.82,0.00030164,7]
[364648230,1749178247781,-489.83533206,0.00030164,7]
[364648231,1749178247790,-509.62868704,0.00030164,5]
[364648232,1749178247799,-571.41595372,0.00030164,7]
[364648233,1749178247808,-151.0,0.00030164,7]
[364648234,1749178247818,-2045.67,0.00030164,7]
[364648235,1749178247827,-1184.25,0.00030164,7]
[364648236,1749178247837,-202.13031356,0.00030164,7]
[364648237,1749178247847,-1882.61,0.00030164,7]
[364648238,1749178247858,-699.78,0.00030164,7]
[364648239,1749178247868,-1245.54,0.00030164,7]
[364648240,1749178247877,-489.5153713,0.00030164,7]
[364648241,1749178247887,-630.6,0.00030164,7]
[364648242,1749178247895,-2608.37,0.00030164,7]
[364648243,1749178247905,-408.69859284,0.00030164,7]
[364648244,1749178247914,-10631.64,0.00030164,7]
[364648245,1749178247923,-480.0,0.00030164,7]
[364648246,1749178247933,-1741.01,0.00030164,7]
[364648247,1749178247942,-756.58,0.00030164,7]
[364648248,1749178247954,-480.0,0.00030164,7]
[364648249,1749178247964,-1019.64,0.00030164,7]
[364648250,1749178247974,-480.0,0.00030164,7]
[364648251,1749178247983,-694.49,0.00030164,7]
[364648252,1749178247992,-480.0,0.00030164,7]
[364648253,1749178248001,-764.37,0.00030164,7]
[364648254,1749178248010,-480.0,0.00030164,7]
[364648255,1749178248019,-829.97,0.00030164,7]
[364648256,1749178248028,-480.0,0.00030164,7]
[364648257,1749178248039,-591.53,0.00030164,7]
[364648258,1749178248048,-798.541413,0.00030164,7]
[364648259,1749178248058,-857.88,0.00030164,7]
[364648260,1749178248068,-503.73,0.00030164,7]
[364648261,1749178248078,-514.51389139,0.00030164,7]
[364648262,1749178248088,-480.0,0.00030164,3]
[364648263,1749178248099,-480.0,0.00030164,7]
[364648264,1749178248108,-9640.57,0.00030164,7]
[364648265,1749178248118,-151.0,0.00030164,7]
[364648266,1749178248130,-798.541413,0.00030164,7]
[364648267,1749178248140,-151.0,0.00030164,7]
[364648268,1749178248150,-480.0,0.00030164,7]
[364648269,1749178248159,-480.0,0.00030164,7]
[364648270,1749178248168,-480.0,0.00030164,7]
[364648271,1749178248178,-480.0,0.00030164,7]
[364648272,1749178248188,-480.0,0.00030164,7]
[364648273,1749178248197,-480.0,0.00030164,7]
[364648274,1749178248207,-480.0,0.00030164,7]
[364648275,1749178248217,-480.0,0.00030164,7]
[364648276,1749178248227,-500.0,0.00030164,7]
[364648277,1749178248237,-480.0,0.00030164,7]
[364648278,1749178248247,-500.0,0.00030164,7]
[364648279,1749178248256,-500.0,0.00030164,7]
[364648280,1749178248267,-430.58685559,0.00030164,7]
[364648281,1749178248276,-480.0,0.00030164,7]
[364648282,1749178248286,-3072.86,0.00030164,7]
[364648283,1749178248295,-480.0,0.00030164,7]
[364648284,1749178248305,-491.22652941,0.00030164,7]
[364648285,1749178248315,-480.0,0.00030164,7]
[364648286,1749178248324,-480.0,0.00030164,7]
[364648287,1749178248333,-962.76,0.00030164,7]
[364648288,1749178248343,-2055.17,0.00030164,7]
[364648289,1749178248352,-1760.26,0.00030164,7]
[364648290,1749178248361,-1065.63,0.00030164,7]
[364648291,1749178248370,-541.23,0.00030164,7]
[364648292,1749178248380,-154.309329,0.00030164,7]
[364648293,1749178248390,-748.7,0.00030164,7]
[364648294,1749178248400,-480.0,0.00030164,7]
[364648295,1749178248409,-498.6407208,0.00030164,7]
[364648296,1749178248419,-480.0,0.00030164,7]
[364648297,1749178248429,-4951.5,0.00030164,7]
[364648298,1749178248438,-1383.22,0.00030164,7]
[364648299,1749178248449,-623.33,0.00030164,7]
[364648300,1749178248459,-1945.35,0.00030164,7]
[364648301,1749178248470,-480.0,0.00030164,7]
[364648302,1749178248479,-1423.13,0.00030164,7]
[364648303,1749178248489,-480.0,0.00030164,7]
[364648304,1749178248499,-19983.06,0.00030164,7]
[364648305,1749178248509,-674.81,0.00030164,7]
[364648306,1749178248519,-1340.87,0.00030164,7]
[364648307,1749178248529,-492.7162033,0.00030164,7]
[364648308,1749178248539,-480.0,0.00030164,7]
[364648309,1749178248549,-480.0,0.00030164,2]
[364648310,1749178248560,-480.0,0.00030164,7]
[364648311,1749178248573,-151.0,0.00030164,7]
[364648312,1749178248583,-480.0,0.00030164,7]
[364648313,1749178248593,-494.47936792,0.00030164,7]
[364648314,1749178248602,-693.58,0.00030164,7]
[364648315,1749178248613,-480.0,0.00030164,2]
[364648316,1749178248623,-254.992778,0.00030164,7]
[364648317,1749178248632,-1150.3,0.00030164,7]
[364648318,1749178248642,-1017.81,0.00030164,7]
[364648319,1749178248651,-342.0337611,0.00030164,7]
[364648320,1749178248660,-480.0,0.00030164,7]
[364648321,1749178248671,-531.43,0.00030164,7]
[364648322,1749178248680,-3212.79,0.00030164,7]
[364648323,1749178248690,-1007.45,0.00030164,2]
[364648324,1749178248699,-1485.96,0.00030164,7]
[364648325,1749178248709,-495.83485887,0.00030164,7]
[364648326,1749178248719,-480.0,0.00030164,7]
[364648327,1749178248728,-917.12,0.00030164,7]
[364648328,1749178248737,-904.91,0.00030164,7]
[364648329,1749178248747,-1441.29,0.00030164,7]
[364648330,1749178248757,-1279.91,0.00030164,7]
[364648331,1749178248767,-646.93,0.00030164,7]
[364648332,1749178248777,-700.0,0.00030164,7]
[364648333,1749178248786,-259.55480653,0.00030172,2]
[364648334,1749178248798,-500.0,0.00030173,5]
[364648335,1749178248808,-507.5360589,0.00030173,5]
[364648336,1749178248818,-500.0,0.00030173,5]
[364648337,1749178248828,-500.0,0.00030173,5]
[364648338,1749178248838,-163.412,0.00030173,25]
[364648339,1749178248848,-3960.532,0.00030173,25]
[364648340,1749178248858,-160.506943,0.00030173,7]
[364648341,1749178248868,-151.0,0.00030173,7]
[364648342,1749178248877,-2158.39623594,0.00030202,2]
[364648343,1749178248887,-189.13475445,0.00030228,2]
[364648344,1749178248897,-259.55480653,0.00030231,2]
[364648345,1749178248906,-156.587,0.00030275,2]
[364648346,1749178248917,-2158.39623594,0.00030276,2]
[364648347,1749178248927,-150.0,0.00030287,2]
[364648348,1749178248937,-500.0,0.00030287,2]
[364648349,1749178248947,-500.0,0.00030287,7]
[364648350,1749178248956,-259.55480653,0.0003029,2]
[364648351,1749178248967,-350.0,0.00030298,2]
[364648352,1749178248976,-1412.47,0.000303,2]
[364648353,1749178248986,-500.0,0.00030317,2]
[364648354,1749178248997,-500.0,0.00030317,7]
[364648355,1749178249007,-500.0,0.00030323,7]
[364648356,1749178249018,-500.0,0.00030323,7]
[364648357,1749178249029,-151.0,0.00030324,7]
[364648358,1749178249039,-7584.5270393,0.00030324,2]
[364648359,1749178249049,-151.0,0.00030324,7]
[364648360,1749178249059,-151.0,0.00030324,7]
[364648361,1749178249069,-151.0,0.00030324,7]
[364648362,1749178249079,-151.0,0.00030324,7]
[364648363,1749178249089,-151.0,0.00030324,7]
[364648364,1749178249100,-151.0,0.00030324,7]
[364648365,1749178249110,-151.0,0.00030324,7]
[364648366,1749178249120,-20123.8396765,0.00030324,2]
[364648367,1749178249132,-184.967797,0.00030324,7]
[364648368,1749178249141,-151.0,0.00030324,7]
[364648369,1749178249151,-184.967797,0.00030324,7]
[364648370,1749178249161,-151.0,0.00030324,7]
[364648371,1749178249173,-1137.894437,0.00030324,7]
[364648372,1749178249184,-151.0,0.00030324,7]
[364648373,1749178249194,-1137.894437,0.00030324,7]
[364648374,1749178249205,-234.056968,0.00030324,7]
[364648375,1749178249215,-439.419103,0.00030324,7]
[364648376,1749178249225,-439.419103,0.00030324,7]
[364648377,1749178249235,-151.0,0.00030324,7]
[364648378,1749178249244,-131576.3556708,0.00030324,2]
[364648379,1749178249254,-5207.905277,0.00030324,7]
[364648380,1749178249264,-5207.905277,0.00030324,7]
[364648381,1749178249274,-151.0,0.00030324,7]
[364648382,1749178249284,-151.0,0.00030324,7]
[364648383,1749178249295,-1006.252971,0.00030324,7]
[364648384,1749178249304,-469.820217,0.00030324,7]
[364648385,1749178249314,-1006.252971,0.00030324,7]
[364648386,1749178249323,-469.820217,0.00030324,7]
[364648387,1749178249332,-151.0,0.00030324,7]
[364648388,1749178249342,-151.0,0.00030324,7]
[364648389,1749178249352,-798.541413,0.00030324,7]
[364648390,1749178249361,-798.541413,0.00030324,7]
[364648391,1749178249370,-151.0,0.00030324,7]
[364648392,1749178249380,-33421.9092508,0.00030324,2]
[364648393,1749178249390,-270.86933667,0.00030325,2]
[364648394,1749178249399,-500.0,0.00030327,2]
[364648395,1749178249409,-500.0,0.00030327,2]
[364648396,1749178249419,-500.0,0.00030327,2]
[364648397,1749178249428,-500.0,0.00030327,7]
[364648398,1749178249438,-150.90978705,0.00030327,2]
[364648399,1749178249448,-151.0,0.00030327,7]
[364648400,1749178249458,-500.0,0.00030327,7]
[364648401,1749178249468,-500.0,0.00030327,7]
[364648402,1749178249478,-500.0,0.00030327,7]
[364648403,1749178249488,-175.86355,0.00030327,7]
[364648404,1749178249498,-151.0,0.00030327,7]
[364648405,1749178249508,-798.541413,0.00030327,7]
[364648406,1749178249518,-798.541413,0.00030327,7]
[364648407,1749178249529,-500.0,0.00030327,7]
[364648408,1749178249539,-500.0,0.00030327,7]
[364648409,1749178249549,-500.0,0.00030327,7]
[364648410,1749178249559,-3347.76646586,0.00030327,6]
[364648411,1749178249569,-811863.59250905,0.00030327,6]
[364648412,1749178250068,-737.66,0.00030327,6]
[364648413,1749178250079,-352.16950378,0.00030327,6]
[364648414,1749178250589,-480.0,0.00030164,7]
[364648415,1749178250600,-695.47,0.00030164,7]
[364648416,1749178250611,-480.0,0.00030164,7]
[364648417,1749178250622,-235648.8698149,0.00030327,6]
[364648418,1749178250632,-1205.0,0.00030328,5]
[364648419,1749178250642,-151.0,0.00030328,7]
[364648420,1749178250652,-151.0,0.00030328,7]
[364648421,1749178250662,-152.86368299,0.00030328,2]
[364648422,1749178250672,-151.0,0.00030328,7]
[364648423,1749178250682,-151.0,0.00030328,7]
[364648424,1749178250692,-151.0,0.00030328,7]
[364648425,1749178250702,-151.0,0.00030328,7]
[364648426,1749178250712,-151.0,0.00030328,7]
[364648427,1749178250721,-480.0,0.00030328,7]
[364648428,1749178250731,-151.0,0.00030328,7]
[364648429,1749178250741,-23684.9,0.00030328,7]
[364648430,1749178250751,-264.982466,0.00030328,7]
[364648431,1749178250760,-298.927186,0.00030328,7]
[364648432,1749178250770,-480.0,0.00030328,7]
[364648433,1749178250779,-480.0,0.00030328,7]
[364648434,1749178250789,-480.0,0.00030328,7]
[364648435,1749178250799,-387.571624,0.00030328,7]
[364648436,1749178250810,-157.538595,0.00030328,7]
[364648437,1749178250819,-387.571624,0.00030328,7]
[364648438,1749178250829,-480.0,0.00030328,7]
[364648439,1749178250838,-157.538595,0.00030328,7]
[364648440,1749178250848,-480.0,0.00030328,7]
[364648441,1749178250858,-480.0,0.00030328,7]
[364648442,1749178250867,-480.0,0.00030328,7]
[364648443,1749178250877,-480.0,0.00030328,7]
[364648444,1749178250887,-777.43,0.00030328,30]
[364648445,1749178250897,-151.0,0.00030328,7]
[364648446,1749178250907,-151.0,0.00030328,7]
[364648447,1749178250917,-189.18816879,0.00030328,7]
[364648448,1749178250926,-151.0,0.00030328,7]
[364648449,1749178250937,-153.223815,0.00030328,7]
[364648450,1749178250947,-480.0,0.00030328,7]
[364648451,1749178250956,-151.0,0.00030328,7]
[364648452,1749178250966,-480.0,0.00030328,7]
[364648453,1749178250976,-480.0,0.00030328,7]
[364648454,1749178250985,-480.0,0.00030328,7]
[364648455,1749178250995,-480.0,0.00030328,7]
[364648456,1749178251005,-151.254161,0.00030328,7]
[364648457,1749178251014,-480.0,0.00030328,7]
[364648458,1749178251026,-480.0,0.00030328,7]
[364648459,1749178251036,-480.0,0.00030328,7]
[364648460,1749178251049,-480.0,0.00030328,7]
[364648461,1749178251059,-289.36012011,0.00030328,7]
[364648462,1749178251069,-480.0,0.00030328,7]
[364648463,1749178251079,-473.1908608,0.00030328,7]
[364648464,1749178251088,-480.0,0.00030328,7]
[364648465,1749178251099,-151.0,0.00030328,7]
[364648466,1749178251108,-151.0,0.00030328,7]
[364648467,1749178251118,-480.0,0.00030328,7]
[364648468,1749178251132,-480.0,0.00030328,7]
[364648469,1749178251141,-151.0,0.00030328,7]
[364648470,1749178251151,-480.0,0.00030328,7]
[364648471,1749178251447,-151.0,0.00030328,7]
[364648472,1749178251458,-157.246815,0.00030328,7]
[364648473,1749178251468,-480.0,0.00030328,7]
[364648474,1749178251479,-480.0,0.00030328,7]
[364648475,1749178251490,-151.0,0.00030328,7]
[364648476,1749178251500,-151.0,0.00030328,7]
[364648477,1749178251511,-480.0,0.00030328,7]
[364648478,1749178251520,-480.0,0.00030328,7]
[364648479,1749178251530,-151.0,0.00030328,7]
[364648480,1749178251541,-151.0,0.00030328,7]
[364648481,1749178251551,-665.81,0.00030328,7]
[364648482,1749178251561,-1329.81,0.00030328,7]
[364648483,1749178251571,-10430.49,0.00030328,7]
[364648484,1749178251580,-451.09657841,0.00030328,7]
[364648485,1749178251590,-480.0,0.00030328,7]
[364648486,1749178251599,-480.0,0.00030328,7]
[364648487,1749178251609,-480.0,0.00030328,7]
[364648488,1749178251619,-480.0,0.00030328,7]
[364648489,1749178251628,-480.0,0.00030328,7]
[364648490,1749178251638,-480.0,0.00030328,7]
[364648491,1749178251647,-480.0,0.00030328,7]
[364648492,1749178251657,-480.0,0.00030328,7]
[364648493,1749178251667,-480.0,0.00030328,7]
[364648494,1749178251676,-480.0,0.00030328,7]
[364648495,1749178251685,-480.0,0.00030328,7]
[364648496,1749178251694,-480.0,0.00030328,7]
[364648497,1749178251703,-480.0,0.00030328,7]
[364648498,1749178251713,-151.0,0.00030328,7]
[364648499,1749178251723,-151.0,0.00030328,7]
[364648500,1749178251735,-151.0,0.00030328,7]
[364648501,1749178251745,-480.0,0.00030328,7]
[364648502,1749178251755,-480.0,0.00030328,7]
[364648503,1749178251765,-833.35,0.00030328,7]
[364648504,1749178251774,-480.0,0.00030328,7]
[364648505,1749178251783,-480.0,0.00030328,7]
[364648506,1749178251793,-480.0,0.00030328,7]
[364648507,1749178251802,-1028.17,0.00030328,7]
[364648508,1749178251812,-480.0,0.00030328,7]
[364648509,1749178251822,-480.0,0.00030328,7]
[364648510,1749178251832,-480.0,0.00030328,7]
[364648511,1749178251843,-470.55415532,0.00030328,7]
[364648512,1749178251852,-480.0,0.00030328,7]
[364648513,1749178251863,-480.0,0.00030328,7]
[364648514,1749178251873,-480.0,0.00030328,7]
[364648515,1749178251882,-480.0,0.00030328,7]
[364648516,1749178251892,-532.71,0.00030328,7]
[364648517,1749178251903,-200.689172,0.00030328,7]
[364648518,1749178251912,-480.0,0.00030328,7]
[364648519,1749178251922,-200.689172,0.00030328,7]
[364648520,1749178251931,-200.689172,0.00030328,7]
[364648521,1749178251941,-200.689172,0.00030328,7]
[364648522,1749178251950,-151.0,0.00030328,7]
[364648523,1749178251959,-151.0,0.00030328,7]
[364648524,1749178251969,-480.0,0.00030328,7]
[364648525,1749178251978,-151.0,0.00030328,7]
[364648526,1749178251988,-151.0,0.00030328,7]
[364648527,1749178251997,-480.0,0.00030328,7]
[364648528,1749178252008,-623.45,0.00030328,7]
[364648529,1749178252018,-480.0,0.00030328,7]
[364648530,1749178252029,-458.60142033,0.00030328,7]
[364648531,1749178252039,-480.0,0.00030328,7]
[364648532,1749178252049,-600.0,0.00030328,2]
[364648533,1749178252058,-480.0,0.00030328,7]
[364648534,1749178252068,-480.0,0.00030328,7]
[364648535,1749178252079,-480.0,0.00030328,7]
[364648536,1749178252091,-280.169556,0.00030328,7]
[364648537,1749178252103,-280.169556,0.00030328,7]
[364648538,1749178252113,-786.03,0.00030328,7]
[364648539,1749178252125,-280.169556,0.00030328,7]
[364648540,1749178252135,-480.0,0.00030328,7]
[364648541,1749178252145,-480.0,0.00030328,7]
[364648542,1749178252155,-280.169556,0.00030328,7]
[364648543,1749178252165,-280.169556,0.00030328,7]
[364648544,1749178252174,-280.169556,0.00030328,7]
[364648545,1749178252184,-745.7,0.00030328,7]
[364648546,1749178252194,-480.0,0.00030328,7]
[364648547,1749178252204,-301.3664513,0.00030328,7]
[364648548,1749178252216,-495.39431166,0.00030328,7]
[364648549,1749178252225,-151.0,0.00030328,7]
[364648550,1749178252236,-151.0,0.00030328,7]
[364648551,1749178252247,-151.0,0.00030328,7]
[364648552,1749178252256,-480.0,0.00030328,7]
[364648553,1749178252266,-151.0,0.00030328,7]
[364648554,1749178252275,-538.68,0.00030328,7]
[364648555,1749178252285,-718.47,0.00030328,7]
[364648556,1749178252294,-480.0,0.00030328,7]
[364648557,1749178252304,-151.0,0.00030328,7]
[364648558,1749178252314,-151.0,0.00030328,7]
[364648559,1749178252323,-151.0,0.00030328,7]
[364648560,1749178252333,-151.0,0.00030328,7]
[364648561,1749178252342,-485.30459681,0.00030328,7]
[364648562,1749178252355,-856.89,0.00030328,7]
[364648563,1749178252366,-480.0,0.00030328,7]
[364648564,1749178252376,-480.0,0.00030328,7]
[364648565,1749178252385,-480.0,0.00030328,7]
[364648566,1749178252395,-883.76,0.00030328,7]
[364648567,1749178252404,-487.35842075,0.00030328,7]
[364648568,1749178252413,-480.0,0.00030328,7]
[364648569,1749178252422,-480.0,0.00030328,7]
[364648570,1749178252432,-480.0,0.00030328,7]
[364648571,1749178252441,-500.0,0.00030328,7]
[364648572,1749178252450,-667.95,0.00030328,7]
[364648573,1749178252460,-487.24265669,0.00030328,7]
[364648574,1749178252469,-480.0,0.00030328,7]
[364648575,1749178252479,-1267.042451,0.00030328,7]
[364648576,1749178252488,-1267.042451,0.00030328,7]
[364648577,1749178252498,-480.0,0.00030328,7]
[364648578,1749178252508,-507.72,0.00030328,7]
[364648579,1749178252518,-480.0,0.00030328,7]
[364648580,1749178252527,-485.82490159,0.00030328,7]
[364648581,1749178252538,-1267.042451,0.00030328,7]
[364648582,1749178252548,-1267.042451,0.00030328,7]
[364648583,1749178252558,-480.0,0.00030328,7]
[364648584,1749178252569,-480.0,0.00030328,7]
[364648585,1749178252580,-151.0,0.00030328,7]
[364648586,1749178252590,-480.0,0.00030328,7]
[364648587,1749178252600,-151.0,0.00030328,7]
[364648588,1749178252610,-480.0,0.00030328,7]
[364648589,1749178252619,-480.0,0.00030328,7]
[364648590,1749178252629,-151.0,0.00030328,7]
[364648591,1749178252638,-151.0,0.00030328,7]
[364648592,1749178252648,-480.0,0.00030328,7]
[364648593,1749178252657,-480.0,0.00030328,7]
[364648594,1749178252667,-151.44515001,0.00030328,7]
[364648595,1749178252676,-480.0,0.00030328,7]
[364648596,1749178252686,-480.0,0.00030328,7]
[364648597,1749178252696,-545.7404718,0.00030328,7]
[364648598,1749178252707,-480.0,0.00030328,7]
[364648599,1749178252717,-480.0,0.00030328,7]
[364648600,1749178252726,-480.0,0.00030328,7]
[364648601,1749178252736,-463.46262265,0.00030328,2]
[364648602,1749178252747,-488.69788449,0.00030328,7]
[364648603,1749178252756,-151.0,0.00030328,7]
[364648604,1749178252767,-151.118879,0.00030328,7]
[364648605,1749178252776,-480.0,0.00030328,7]
[364648606,1749178252785,-480.0,0.00030328,7]
[364648607,1749178252796,-480.0,0.00030328,7]
[364648608,1749178252806,-480.0,0.00030328,7]
[364648609,1749178252816,-480.0,0.00030328,7]
[364648610,1749178252825,-480.0,0.00030328,7]
[364648611,1749178252835,-480.0,0.00030328,7]
[364648612,1749178252845,-480.0,0.00030328,7]
[364648613,1749178252854,-480.0,0.00030328,7]
[364648614,1749178252864,-480.0,0.00030328,7]
[364648615,1749178252874,-499.56877977,0.00030328,7]
[364648616,1749178252883,-864.99,0.00030328,7]
[364648617,1749178252892,-480.0,0.00030328,7]
[364648618,1749178252901,-645.98,0.00030328,7]
[364648619,1749178252911,-151.0,0.00030328,7]
[364648620,1749178252923,-151.0,0.00030328,7]
[364648621,1749178252932,-151.0,0.00030328,7]
[364648622,1749178252943,-1223.29,0.00030328,7]
[364648623,1749178252954,-480.0,0.00030328,7]
[364648624,1749178252964,-365.668125,0.00030328,7]
[364648625,1749178252973,-365.668125,0.00030328,7]
[364648626,1749178252983,-480.0,0.00030328,7]
[364648627,1749178252992,-365.668125,0.00030328,7]
[364648628,1749178253002,-480.0,0.00030328,7]
[364648629,1749178253012,-480.0,0.00030328,7]
[364648630,1749178253021,-489.63464675,0.00030328,7]
[364648631,1749178253031,-480.0,0.00030328,7]
[364648632,1749178253040,-784.51,0.00030328,7]
[364648633,1749178253050,-480.0,0.00030328,7]
[364648634,1749178253060,-480.0,0.00030328,7]
[364648635,1749178253070,-365.668125,0.00030328,7]
[364648636,1749178253079,-365.668125,0.00030328,7]